bitfinex/quotes_BTCUSD_20250616
["timestamp","ask_amount","ask_price","bid_price","bid_amount"]
[1750088774472,0.01014209,107740.0,107730.0,0.75858741]
[1750088775474,0.01014209,107740.0,107730.0,0.77458741]
[1750088775925,0.01014209,107740.0,107730.0,0.75858741]
[1750088776370,0.59440246,107740.0,107730.0,0.75858741]
[1750088776809,0.01014209,107740.0,107730.0,0.75858741]
[1750088777461,0.04174209,107740.0,107730.0,0.75858741]
[1750088777681,0.62600246,107740.0,107730.0,0.77373741]
[1750088778549,0.04174209,107740.0,107730.0,0.77373741]
[1750088780228,0.62600246,107740.0,107730.0,0.77373741]
[1750088780687,0.62600246,107740.0,107730.0,0.77677741]
[1750088780910,0.59440246,107740.0,107730.0,0.77677741]
[1750088781344,0.01014209,107740.0,107730.0,0.77677741]
[1750088781583,0.62590246,107740.0,107730.0,0.77677741]
[1750088781874,0.63050246,107740.0,107730.0,0.31749565]
[1750088782090,0.63050246,107740.0,107730.0,0.21749565]
[1750088782531,0.04624209,107740.0,107730.0,0.21749565]
[1750088782752,0.63050246,107740.0,107730.0,0.21749565]
[1750088783658,0.63050246,107740.0,107730.0,0.31373741]
[1750088783659,0.04164209,107740.0,107730.0,0.31373741]
[1750088783873,0.04164209,107740.0,107730.0,0.31858741]
[1750088784097,0.04164209,107740.0,107730.0,0.31373741]
[1750088784306,0.62590246,107740.0,107730.0,0.31373741]
[1750088784961,0.63050246,107740.0,107730.0,0.31373741]
[1750088785868,0.62590246,107740.0,107730.0,0.31373741]
[1750088786918,0.62590246,107740.0,107730.0,0.21749565]
[1750088787138,0.63050246,107740.0,107730.0,0.21749565]
[1750088789044,0.62590246,107740.0,107730.0,0.21749565]
[1750088789540,0.01014209,107740.0,107730.0,0.31677741]
[1750088792192,0.00995645,107740.0,107730.0,0.31677741]
[1750088793723,0.00995645,107740.0,107730.0,0.41677741]
[1750088795294,0.62571682,107740.0,107730.0,0.41373741]
[1750088795708,0.62071682,107740.0,107730.0,0.41373741]
[1750088796477,0.60451682,107740.0,107730.0,0.41373741]
[1750088796693,0.62031682,107740.0,107730.0,0.41837741]
[1750088796891,0.62031682,107740.0,107730.0,0.41373741]
[1750088799433,0.62031682,107740.0,107730.0,0.41719741]
[1750088800000,0.00495645,107740.0,107730.0,0.41719741]
[1750088800420,0.00495645,107740.0,107730.0,0.43319741]
[1750088800627,0.00495645,107740.0,107730.0,0.44909741]
[1750088801436,0.00495645,107740.0,107730.0,1.03335778]
[1750088802700,0.00495645,107740.0,107730.0,0.44909741]
[1750088804408,0.00495645,107740.0,107730.0,0.43319741]
[1750088804866,0.00495645,107740.0,107730.0,0.46106544]
[1750088806396,0.00495645,107740.0,107730.0,0.44506544]
[1750088807358,0.00495645,107740.0,107730.0,0.46026544]
[1750088807538,0.00495645,107740.0,107730.0,1.01646544]
[1750088807810,0.00495645,107740.0,107730.0,1.80072581]
[1750088808029,0.00495645,107740.0,107730.0,1.21646544]
[1750088808270,0.00495645,107740.0,107730.0,1.80072581]
[1750088808954,0.00495645,107740.0,107730.0,1.82072581]
[1750088813852,0.00495645,107740.0,107730.0,1.23646544]
[1750088814076,0.00495645,107740.0,107730.0,1.22026544]
[1750088814736,0.58921682,107740.0,107730.0,1.00160544]
[1750088814923,0.03605645,107740.0,107730.0,0.97373741]
[1750088815174,0.03605645,107740.0,107730.0,0.97837741]
[1750088815404,0.00495645,107740.0,107730.0,0.97837741]
[1750088815618,0.00495645,107740.0,107730.0,1.79363778]
[1750088816497,0.00495645,107740.0,107730.0,1.20937741]
[1750088816727,0.0018039,107740.0,107730.0,2.8331507]
[1750088816966,0.02778856,107760.0,107750.0,1.02333686]
[1750088817179,0.02778856,107760.0,107750.0,1.79621986]
[1750088817439,0.02778856,107760.0,107750.0,1.70383899]
[1750088817886,0.02778856,107760.0,107750.0,1.09957862]
[1750088818100,0.02778856,107760.0,107750.0,1.68383899]
[1750088818560,0.02778856,107760.0,107750.0,1.71186819]
[1750088818789,0.02778856,107760.0,107750.0,0.68172697]
[1750088819039,0.64364893,107760.0,107750.0,0.65369777]
[1750088819254,0.64364893,107760.0,107750.0,0.66014777]
[1750088819255,0.02778856,107760.0,107750.0,0.66014777]
[1750088820141,0.03778856,107760.0,107750.0,0.66014777]
[1750088821463,0.03778856,107760.0,107750.0,1.26030814]
[1750088821681,0.03778856,107760.0,107750.0,1.27640814]
[1750088822187,0.03778856,107760.0,107750.0,1.30465182]
[1750088823115,0.03778856,107760.0,107750.0,1.73919267]
[1750088824231,0.03778856,107760.0,107750.0,1.1549323]
[1750088824452,0.03778856,107760.0,107750.0,1.73919267]
[1750088826060,0.03778856,107760.0,107750.0,1.10961145]
[1750088826499,0.05378856,107760.0,107750.0,1.10961145]
[1750088826964,0.03778856,107760.0,107750.0,1.10961145]
[1750088827212,0.06898856,107760.0,107750.0,0.31669777]
[1750088827392,0.65793893,107760.0,107750.0,0.31669777]
[1750088828199,1.26075793,107760.0,107750.0,0.22045601]
[1750088828412,1.2421993,107760.0,107750.0,0.22045601]
[1750088828638,0.66721812,107760.0,107750.0,0.22045601]
[1750088828899,0.65793893,107760.0,107750.0,0.21745601]
[1750088829143,1.2421993,107760.0,107750.0,0.21745601]
[1750088829398,0.65793893,107760.0,107750.0,0.21745601]
[1750088830075,0.65793893,107760.0,107750.0,0.21345601]
[1750088830542,0.06898856,107760.0,107750.0,0.21345601]
[1750088830792,0.05298856,107760.0,107750.0,0.30969777]
[1750088831043,0.03778856,107760.0,107750.0,0.31309777]
[1750088831508,0.05288856,107760.0,107750.0,0.30969777]
[1750088831771,0.06948856,107760.0,107750.0,0.30969777]
[1750088831988,0.65374893,107760.0,107750.0,0.30969777]
[1750088832434,0.65843893,107760.0,107750.0,0.30969777]
[1750088832732,1.2519784,107760.0,107750.0,0.21345601]
[1750088832918,1.26125776,107760.0,107750.0,0.21345601]
[1750088833179,1.2426993,107760.0,107750.0,0.21345601]
[1750088834769,1.29646804,107760.0,107750.0,0.18561484]
[1750088834968,1.46070838,107760.0,107750.0,0.19489541]
[1750088835254,1.45142928,107760.0,107750.0,0.2041758]
[1750088835445,0.04148048,107750.0,107740.0,0.19489764]
[1750088835698,0.63735739,107750.0,107740.0,0.21346007]
[1750088836113,0.65591827,107750.0,107740.0,0.21346007]
[1750088836322,0.6466377,107750.0,107740.0,0.21346007]
[1750088836548,0.63735739,107750.0,107740.0,0.21346007]
[1750088836759,0.61879721,107750.0,107740.0,0.21346007]
[1750088836967,0.62807734,107750.0,107740.0,0.21346007]
[1750088837153,0.62807734,107750.0,107740.0,0.21746007]
[1750088837664,0.91921485,107750.0,107740.0,0.004]
[1750088837877,0.91921485,107750.0,107740.0,0.18963207]
[1750088838077,0.91921485,107750.0,107740.0,0.19891367]
[1750088838285,0.91921485,107750.0,107740.0,0.2081951]
[1750088838497,0.91921485,107750.0,107740.0,0.21747635]
[1750088838862,0.91921485,107750.0,107740.0,0.21547635]
[1750088839484,0.91921485,107750.0,107740.0,0.002]
[1750088839485,1.31588105,107750.0,107740.0,0.002]
[1750088839684,1.2592152,107750.0,107740.0,0.18763207]
[1750088839889,1.2592152,107750.0,107740.0,0.20619518]
[1750088840111,1.2592152,107750.0,107740.0,0.20419518]
[1750088840345,1.2592152,107750.0,107740.0,0.22275795]
[1750088840517,1.2592152,107750.0,107740.0,0.2320392]
[1750088840747,1.2592152,107750.0,107740.0,0.2227576]
[1750088840874,1.2592152,107750.0,107740.0,0.23203877]
[1750088841081,1.2592152,107750.0,107740.0,0.22275726]
[1750088841293,1.2592152,107750.0,107740.0,0.21347609]
[1750088841947,1.2592152,107750.0,107740.0,0.22275726]
[1750088842288,1.06431936,107750.0,107740.0,0.23203826]
[1750088842510,0.95879721,107750.0,107740.0,0.23203826]
[1750088842800,0.95879721,107750.0,107740.0,0.22275726]
[1750088843030,1.17225322,107750.0,107740.0,0.22275726]
[1750088843704,1.17225322,107750.0,107740.0,0.23203834]
[1750088843938,0.96807734,107750.0,107740.0,0.23203791]
[1750088844179,0.96807726,107750.0,107740.0,0.23203791]
[1750088844407,0.97735773,107750.0,107740.0,0.23203791]
[1750088844650,0.97735765,107750.0,107740.0,0.23203791]
[1750088844886,0.95879721,107750.0,107740.0,0.23203791]
[1750088845123,0.96807726,107750.0,107740.0,0.23203791]
[1750088845367,0.95879721,107750.0,107740.0,0.23203791]
[1750088846026,0.97735757,107750.0,107740.0,0.23203791]
[1750088846237,0.97735748,107750.0,107740.0,0.23203791]
[1750088846869,0.98663787,107750.0,107740.0,0.23203791]
[1750088847302,1.00519909,107750.0,107740.0,0.23203791]
[1750088847767,1.19081393,107750.0,107740.0,0.23203791]
[1750088848260,1.00519909,107750.0,107740.0,0.23203791]
[1750088848487,0.99591844,107750.0,107740.0,0.23203791]
[1750088848702,1.19081462,107750.0,107740.0,0.22275691]
[1750088848923,1.1815344,107750.0,107740.0,0.21347583]
[1750088849360,0.98663882,107750.0,107740.0,0.22275683]
[1750088849571,1.17225366,107750.0,107740.0,0.21347583]
[1750088850043,0.98663882,107750.0,107740.0,0.23203791]
[1750088850708,1.17225366,107750.0,107740.0,0.23203791]
[1750088850930,1.1815344,107750.0,107740.0,0.23203791]
[1750088851362,1.1815344,107750.0,107740.0,0.22275691]
[1750088851576,1.1815344,107750.0,107740.0,0.21347583]
[1750088851804,1.26849577,107750.0,107740.0,0.20419501]
[1750088852675,1.26849577,107750.0,107740.0,0.21347626]
[1750088853143,1.26849577,107750.0,107740.0,0.20419501]
[1750088853362,1.26849577,107750.0,107740.0,0.21347618]
[1750088853596,1.06431928,107750.0,107740.0,0.22275718]
[1750088853852,0.96807734,107750.0,107740.0,0.22275718]
[1750088854295,0.97735765,107750.0,107740.0,0.22275718]
[1750088854734,0.95410721,107750.0,107740.0,0.22275718]
[1750088855180,1.01458441,107760.0,107750.0,0.21345601]
[1750088855402,1.02386403,107760.0,107750.0,0.21345601]
[1750088855643,1.03314373,107760.0,107750.0,0.21345601]
[1750088856272,1.02386403,107760.0,107750.0,0.21345601]
[1750088857796,1.03314373,107760.0,107750.0,0.21345601]
[1750088857999,1.02386403,107760.0,107750.0,0.21345601]
[1750088858758,1.01458441,107760.0,107750.0,0.21345601]
[1750088858973,1.01458432,107760.0,107750.0,0.21345601]
[1750088859174,1.02386377,107760.0,107750.0,0.21345601]
[1750088859599,1.0331433,107760.0,107740.0,0.1949135]
[1750088859816,1.0331433,107760.0,107740.0,0.19491358]
[1750088860056,0.22273651,107750.0,107730.0,0.20911293]
[1750088860267,0.22273651,107750.0,107730.0,0.33785469]
[1750088860498,0.00928082,107740.0,107730.0,0.3378552]
[1750088860759,0.02784669,107730.0,107720.0,0.0325]
[1750088860986,0.79540295,107730.0,107720.0,0.20438961]
[1750088861212,0.7768388,107730.0,107720.0,0.00014209]
[1750088861444,0.82295083,107730.0,107720.0,0.18580863]
[1750088861661,0.82295083,107730.0,107720.0,0.00014209]
[1750088862089,0.82295083,107730.0,107720.0,0.19509187]
[1750088862312,0.8136688,107730.0,107720.0,0.00014209]
[1750088862530,0.80438651,107730.0,107720.0,0.00014209]
[1750088863150,0.80438651,107730.0,107720.0,0.18580863]
[1750088863366,0.80438651,107730.0,107720.0,0.00214209]
[1750088863892,0.80438651,107730.0,107720.0,0.00414209]
[1750088867670,0.80438651,107730.0,107720.0,0.18980863]
[1750088867884,0.80438651,107730.0,107720.0,0.19909195]
[1750088868107,0.99925863,107740.0,107730.0,0.19493133]
[1750088868326,0.34928091,107740.0,107730.0,0.21349548]
[1750088868545,0.92190721,107740.0,107730.0,0.21839548]
[1750088868762,0.60979221,107750.0,107740.0,0.21347583]
[1750088868977,0.59118726,107750.0,107740.0,0.21347583]
[1750088869183,0.9497477,107750.0,107740.0,0.21347583]
[1750088869388,0.95902809,107750.0,107740.0,0.21347583]
[1750088869598,0.96830866,107750.0,107740.0,0.21347583]
[1750088869816,1.1539241,107750.0,107740.0,0.21347583]
[1750088870028,1.1549241,107750.0,107740.0,0.21347583]
[1750088870248,0.00928108,107740.0,107730.0,0.20911293]
[1750088870463,0.60046963,107740.0,107730.0,0.20421293]
[1750088870669,0.59118829,107740.0,107730.0,0.20421293]
[1750088871503,0.60046954,107740.0,107730.0,0.20421293]
[1750088871638,0.60046911,107740.0,107730.0,0.20521293]
[1750088872217,0.60975036,107740.0,107730.0,0.20521293]
[1750088872427,0.61903179,107740.0,107730.0,0.20521293]
[1750088872683,0.60975036,107740.0,107730.0,0.20521293]
[1750088873375,0.60975036,107740.0,107730.0,0.20621293]
[1750088873578,0.60046911,107740.0,107730.0,0.20621293]
[1750088873783,0.60975036,107740.0,107730.0,0.20621293]
[1750088874404,0.60046911,107740.0,107730.0,0.20915293]
[1750088874878,0.23908325,107760.0,107750.0,3.85368691]
[1750088875088,0.91723222,107760.0,107750.0,4.3885824]
[1750088875522,0.9265121,107760.0,107750.0,4.3885824]
[1750088875738,0.9265121,107760.0,107750.0,4.39786297]
[1750088875961,0.93579172,107760.0,107750.0,4.3885824]
[1750088876167,0.93779172,107760.0,107750.0,4.3885824]
[1750088876377,0.94703596,107760.0,107750.0,4.39786297]
[1750088876601,0.07404098,107760.0,107750.0,4.41642349]
[1750088876827,0.8073436,107760.0,107750.0,4.40714336]
[1750088876978,0.81336424,107760.0,107750.0,4.40714336]
[1750088877426,0.81336424,107760.0,107750.0,4.39786297]
[1750088877620,0.81336424,107760.0,107750.0,4.41642384]
[1750088878266,0.80408462,107760.0,107750.0,4.41642384]
[1750088878470,0.80408462,107760.0,107750.0,4.40714345]
[1750088879309,0.80408462,107760.0,107750.0,4.41642384]
[1750088879851,0.22217741,107760.0,107750.0,4.41642384]
[1750088880065,0.22217741,107760.0,107750.0,4.08570415]
[1750088880298,0.0273,107760.0,107750.0,4.08570415]
[1750088880519,0.03055949,107760.0,107750.0,4.09040363]
[1750088883097,0.04911796,107760.0,107750.0,4.09040363]
[1750088883821,0.03983826,107760.0,107750.0,4.09040363]
[1750088884064,0.03055864,107760.0,107750.0,4.09040363]
[1750088884297,0.03055855,107760.0,107750.0,4.10660363]
[1750088884510,0.02127919,107760.0,107750.0,4.10660363]
[1750088885189,0.03983799,107760.0,107750.0,4.10660363]
[1750088885404,0.62146323,107760.0,107750.0,4.10660363]
[1750088885625,0.62146323,107760.0,107750.0,4.12280363]
[1750088885626,0.59362532,107760.0,107750.0,4.12280363]
[1750088885864,0.012,107760.0,107750.0,4.12280363]
[1750088886046,0.012,107760.0,107750.0,4.10660363]
[1750088886339,0.012,107760.0,107750.0,4.12240363]
[1750088888083,0.012,107760.0,107750.0,4.82027071]
[1750088888371,0.012,107760.0,107750.0,4.84788144]
[1750088889405,0.012,107760.0,107750.0,5.68678144]
[1750088889643,0.00491,107780.0,107770.0,0.61031641]
[1750088889919,0.00491,107780.0,107770.0,1.28818349]
[1750088890821,0.00495734,107780.0,107770.0,1.28818349]
[1750088891052,0.00495734,107780.0,107770.0,1.28768174]
[1750088891278,0.00495734,107780.0,107770.0,0.70655817]
[1750088891495,0.00495734,107780.0,107770.0,0.94768174]
[1750088891738,0.00495734,107780.0,107770.0,0.36655817]
[1750088891968,0.00495734,107780.0,107770.0,0.36755817]
[1750088892401,0.00495734,107780.0,107770.0,0.36855817]
[1750088893349,0.00495734,107780.0,107770.0,0.21541641]
[1750088893598,0.00495734,107780.0,107770.0,0.22011641]
[1750088893817,0.00495734,107780.0,107770.0,0.23541641]
[1750088894030,0.00495734,107780.0,107770.0,0.36705817]
[1750088895137,0.00495734,107780.0,107770.0,0.94818174]
[1750088895607,0.00495734,107780.0,107770.0,0.36705817]
[1750088896530,0.00495734,107780.0,107770.0,0.35165817]
[1750088896735,0.00495734,107780.0,107770.0,0.33165817]
[1750088897182,0.00495734,107780.0,107770.0,0.23541641]
[1750088897428,0.00495734,107780.0,107770.0,0.22011641]
[1750088898421,0.00495734,107780.0,107770.0,0.25081641]
[1750088898679,0.00495734,107780.0,107770.0,0.34705817]
[1750088899172,0.00495734,107780.0,107770.0,0.92818174]
[1750088900331,0.00495734,107780.0,107770.0,0.34705817]
[1750088902655,0.00495734,107780.0,107770.0,0.33165817]
[1750088904213,0.00495734,107780.0,107770.0,0.34735817]
[1750088905672,0.00495734,107780.0,107770.0,0.36735817]
[1750088906980,0.00495734,107780.0,107770.0,1.48848174]
[1750088907206,0.00495734,107780.0,107770.0,1.68848174]
[1750088910987,0.00495734,107780.0,107770.0,1.98638174]
[1750088914895,0.00495734,107780.0,107770.0,1.16955817]
[1750088915129,0.00495734,107780.0,107770.0,0.96955817]
[1750088915605,0.00495734,107780.0,107770.0,0.60955817]
[1750088915855,0.00495734,107780.0,107770.0,0.31644817]
[1750088916084,0.02025734,107780.0,107770.0,0.31644817]
[1750088916564,0.00495734,107780.0,107770.0,0.31644817]
[1750088917035,0.01495734,107780.0,107770.0,0.31644817]
[1750088918263,0.04288683,107780.0,107770.0,0.31644817]
[1750088918445,0.01495734,107780.0,107770.0,0.31644817]
[1750088918696,0.05854575,107780.0,107770.0,0.31644817]
[1750088918906,0.03035734,107780.0,107770.0,0.31644817]
[1750088920862,0.01495734,107780.0,107770.0,0.31644817]
[1750088921523,0.01495734,107780.0,107770.0,0.33254817]
[1750088921734,0.01495734,107780.0,107770.0,0.34764817]
[1750088922183,0.01495734,107780.0,107770.0,0.33254817]
[1750088922834,0.01495734,107780.0,107770.0,0.31644817]
[1750088922835,0.04227303,107780.0,107770.0,0.31644817]
[1750088923050,0.01495734,107780.0,107770.0,0.31644817]
[1750088923498,0.01495734,107780.0,107770.0,0.34884817]
[1750088923711,0.01495734,107780.0,107770.0,0.33234817]
[1750088924559,0.01495734,107780.0,107770.0,0.34884817]
[1750088924806,0.01495734,107780.0,107770.0,0.33234817]
[1750088926637,0.01495734,107780.0,107770.0,0.31644817]
[1750088927405,0.0430192,107780.0,107770.0,0.31644817]
[1750088928095,0.0430192,107780.0,107770.0,0.33244817]
[1750088929957,0.0430192,107780.0,107770.0,0.31644817]
[1750088930428,0.01495734,107780.0,107770.0,0.31644817]
[1750088937628,0.03125734,107780.0,107770.0,0.31644817]
[1750088942753,0.03125734,107780.0,107770.0,0.21541641]
[1750088942976,0.64881539,107780.0,107770.0,0.21541641]
[1750088943197,0.65809329,107780.0,107770.0,0.21541641]
[1750088943408,0.64881539,107780.0,107770.0,0.21541641]
[1750088943627,0.04894734,107780.0,107770.0,0.21541641]
[1750088943849,0.04635734,107780.0,107770.0,0.21541641]
[1750088944902,0.05563472,107780.0,107770.0,0.21541641]
[1750088945113,0.06491236,107780.0,107770.0,0.21541641]
[1750088945323,0.63694758,107780.0,107770.0,0.21541641]
[1750088945531,0.64622513,107780.0,107770.0,0.21541641]
[1750088945742,0.63694758,107780.0,107770.0,0.21541641]
[1750088946151,0.04635734,107780.0,107770.0,0.21541641]
[1750088946775,0.6276702,107780.0,107770.0,0.21541641]
[1750088947190,0.04635734,107780.0,107770.0,0.21541641]
[1750088947835,0.6276702,107780.0,107770.0,0.21541641]
[1750088948462,0.63694767,107780.0,107770.0,0.21541641]
[1750088948980,0.64622531,107780.0,107770.0,0.21541641]
[1750088949577,0.85034411,107780.0,107770.0,0.206138]
[1750088949809,0.85034411,107780.0,107770.0,0.1875804]
[1750088949810,0.93062102,107780.0,107770.0,0.1875804]
[1750088950079,0.93062102,107780.0,107770.0,0.206138]
[1750088950811,0.93062102,107780.0,107770.0,0.21541658]
[1750088951014,0.93062102,107780.0,107770.0,0.22469508]
[1750088951223,0.93062102,107780.0,107770.0,0.21541658]
[1750088952263,0.93062102,107780.0,107770.0,0.22469508]
[1750088952550,0.93062102,107780.0,107770.0,0.21541658]
[1750088953168,0.9400127,107780.0,107770.0,0.21541658]
[1750088953695,0.35869984,107780.0,107770.0,0.21541658]
[1750088953919,0.9400127,107780.0,107770.0,0.22469499]
[1750088954103,0.76372759,107780.0,107770.0,0.22469499]
[1750088954519,0.94929077,107780.0,107770.0,0.22469499]
[1750088954823,0.95856892,107780.0,107770.0,0.22469499]
[1750088954958,1.28001304,107780.0,107770.0,0.19685933]
[1750088955162,1.28001304,107780.0,107770.0,0.20613817]
[1750088955365,1.27073497,107780.0,107770.0,0.1875804]
[1750088955564,1.27073497,107780.0,107770.0,0.19685942]
[1750088955748,1.27073497,107780.0,107770.0,0.21541719]
[1750088956213,1.27073497,107780.0,107770.0,0.22469595]
[1750088956454,1.28001287,107780.0,107770.0,0.23397384]
[1750088956589,1.09444926,107780.0,107770.0,0.23397384]
[1750088957361,1.28001244,107780.0,107770.0,0.23397384]
[1750088957575,1.11300505,107780.0,107770.0,0.23397384]
[1750088957817,1.29856823,107780.0,107770.0,0.23397384]
[1750088958032,1.29856874,107780.0,107770.0,0.22469543]
[1750088958247,1.28929102,107780.0,107770.0,0.22469543]
[1750088958608,1.28929102,107780.0,107770.0,0.21541693]
[1750088958808,1.28929102,107780.0,107770.0,0.2246956]
[1750088959030,1.28929102,107780.0,107770.0,0.23397375]
[1750088959708,1.10372784,107780.0,107770.0,0.23397375]
[1750088959909,1.10372784,107780.0,107770.0,0.23397332]
[1750088960328,1.28929102,107780.0,107770.0,0.22469491]
[1750088961326,1.09444934,107780.0,107770.0,0.23397332]
[1750088961549,1.28929059,107780.0,107770.0,0.23397332]
[1750088961701,0.40502674,107780.0,107770.0,0.23397332]
[1750088961909,0.97123935,107780.0,107770.0,0.23397332]
[1750088962113,0.98051707,107780.0,107770.0,0.23397332]
[1750088962336,0.97112539,107780.0,107770.0,0.23397332]
[1750088962537,0.98682539,107780.0,107770.0,0.23397332]
[1750088962708,0.99610329,107780.0,107770.0,0.23397332]
[1750088962916,1.00538127,107780.0,107770.0,0.23397332]
[1750088963234,0.99610329,107780.0,107770.0,0.23397332]
[1750088964129,1.00538127,107780.0,107770.0,0.23397332]
[1750088964328,1.33677595,107780.0,107770.0,0.20613818]
[1750088964534,1.28977681,107780.0,107770.0,0.21541668]
[1750088966213,1.29910314,107780.0,107770.0,0.21541668]
[1750088966425,1.29910314,107780.0,107770.0,0.22469509]
[1750088966426,1.10426189,107780.0,107770.0,0.22469509]
[1750088966629,0.97754767,107780.0,107770.0,0.22469509]
[1750088966808,0.97112522,107780.0,107770.0,0.22469509]
[1750088967255,0.99650303,107780.0,107770.0,0.22469509]
[1750088967944,1.00578101,107780.0,107770.0,0.22469509]
[1750088968174,0.99650303,107780.0,107770.0,0.22469509]
[1750088968366,1.00578101,107780.0,107770.0,0.22469509]
[1750088968577,1.00578093,107780.0,107770.0,0.22469509]
[1750088968791,1.20978563,107780.0,107770.0,0.22469509]
[1750088969051,1.20050876,107780.0,107770.0,0.20613818]
[1750088969260,1.19382095,107780.0,107770.0,0.21541685]
[1750088969980,1.19382095,107780.0,107770.0,0.22469535]
[1750088970751,1.19382095,107780.0,107770.0,0.21541685]
[1750088971402,1.18454305,107780.0,107770.0,0.21541685]
[1750088972270,1.18454305,107780.0,107770.0,0.22469543]
[1750088972485,1.18195305,107780.0,107770.0,0.23397384]
[1750088972698,0.98711121,107780.0,107770.0,0.23397384]
[1750088972956,0.97112539,107780.0,107770.0,0.23397384]
[1750088973873,0.36423472,107780.0,107770.0,0.25486384]
[1750088974092,0.35495734,107780.0,107770.0,0.25486384]
[1750088974309,0.36423481,107780.0,107770.0,0.25486384]
[1750088974523,0.36423472,107780.0,107770.0,0.25486384]
[1750088974930,0.37351227,107780.0,107770.0,0.25486384]
[1750088976116,0.38278999,107780.0,107770.0,0.25486384]
[1750088976313,0.38278991,107780.0,107770.0,0.25486384]
[1750088976522,0.37351227,107780.0,107770.0,0.25486384]
[1750088976945,0.36423472,107780.0,107770.0,0.25486384]
[1750088977357,0.01495734,107780.0,107770.0,0.8515767]
[1750088977560,0.01495734,107780.0,107770.0,0.27026384]
[1750088977761,0.60554775,107780.0,107770.0,0.24987384]
[1750088977962,0.64020345,107780.0,107770.0,0.23397384]
[1750088978177,0.66548135,107780.0,107770.0,0.23397384]
[1750088978383,0.85104504,107780.0,107770.0,0.20613826]
[1750088978580,0.65620371,107780.0,107770.0,0.22469534]
[1750088978917,0.64692573,107780.0,107770.0,0.23397375]
[1750088979125,0.65620371,107780.0,107770.0,0.23397375]
[1750088979568,0.64692539,107780.0,107770.0,0.23397375]
[1750088980002,0.6562032,107780.0,107770.0,0.23397375]
[1750088980177,0.66548118,107780.0,107770.0,0.23397375]
[1750088980782,0.6562032,107780.0,107770.0,0.23397375]
[1750088981931,0.6402032,107780.0,107770.0,0.23397375]
[1750088982521,0.64948118,107780.0,107770.0,0.23397375]
[1750088982824,0.66578118,107780.0,107770.0,0.23397375]
[1750088985327,0.6565032,107780.0,107770.0,0.23397375]
[1750088985532,0.01495734,107780.0,107770.0,0.25426375]
[1750088985746,0.03351236,107780.0,107770.0,0.25426375]
[1750088985911,0.02423481,107780.0,107770.0,0.25426375]
[1750088986307,0.03351245,107780.0,107770.0,0.25426375]
[1750088986560,0.03351245,107780.0,107770.0,0.23896375]
[1750088986742,0.5962702,107780.0,107770.0,0.25416375]
[1750088986921,0.61482513,107780.0,107770.0,0.25416375]
[1750088987299,0.62410285,107780.0,107770.0,0.25416375]
[1750088987757,0.61482513,107780.0,107770.0,0.25416375]
[1750088988334,0.60554758,107780.0,107770.0,0.25416375]
[1750088988621,0.61482513,107780.0,107770.0,0.25416375]
[1750088988853,0.60554758,107780.0,107770.0,0.25416375]
[1750088989468,0.5962702,107780.0,107770.0,0.25416375]
[1750088990313,0.03351245,107780.0,107770.0,0.25416375]
[1750088990540,0.01495734,107780.0,107770.0,0.25476375]
[1750088990752,0.01495734,107780.0,107770.0,0.27106375]
[1750088991184,0.02423472,107780.0,107770.0,0.27106375]
[1750088991472,0.5962702,107780.0,107770.0,0.27106375]
[1750088991683,0.60554767,107780.0,107770.0,0.27106375]
[1750088991886,0.01495734,107780.0,107770.0,0.27106375]
[1750088992214,0.02423472,107780.0,107770.0,0.27106375]
[1750088992432,0.61482522,107780.0,107770.0,0.25476375]
[1750088992638,0.62410312,107780.0,107770.0,0.23357375]
[1750088992860,0.6484811,107780.0,107770.0,0.23357375]
[1750088993067,0.04861236,107780.0,107770.0,0.23357375]
[1750088993266,0.60554758,107780.0,107770.0,0.23856375]
[1750088993469,0.62410294,107780.0,107770.0,0.23856375]
[1750088994422,0.64848092,107780.0,107770.0,0.23856375]
[1750088994915,0.64848092,107780.0,107770.0,0.23357375]
[1750088995126,0.76003014,107780.0,107770.0,0.22429543]
[1750088995331,0.76930821,107780.0,107770.0,0.22429543]
[1750088995785,0.95487139,107780.0,107770.0,0.22429543]
[1750088995995,0.95487216,107780.0,107770.0,0.22429543]
[1750088996187,0.95487216,107780.0,107770.0,0.21501702]
[1750088996399,0.94559461,107780.0,107770.0,0.2242956]
[1750088997530,0.76003143,107780.0,107770.0,0.23357401]
[1750088997730,0.94559461,107780.0,107770.0,0.23357401]
[1750088999952,0.94559461,107780.0,107770.0,0.2242956]
[1750089000395,0.94559461,107780.0,107770.0,0.21501702]
[1750089000611,0.9363168,107780.0,107770.0,0.21501702]
[1750089000864,0.9363168,107780.0,107770.0,0.2242956]
[1750089001073,0.9363168,107780.0,107770.0,0.21501702]
[1750089001296,0.92703882,107780.0,107770.0,0.20573835]
[1750089001510,0.92703882,107780.0,107770.0,0.21501702]
[1750089001761,0.91163882,107780.0,107770.0,0.22429543]
[1750089002001,0.91163882,107780.0,107770.0,0.21501702]
[1750089002233,0.91163882,107780.0,107770.0,0.2242956]
[1750089002683,0.33032596,107780.0,107770.0,0.2242956]
[1750089002895,0.91163882,107780.0,107770.0,0.2242956]
[1750089003364,0.91163882,107780.0,107770.0,0.21501702]
[1750089003564,0.8304896,107780.0,107770.0,0.21501702]
[1750089003785,1.24817514,107780.0,107770.0,0.0016]
[1750089004035,1.25076514,107780.0,107770.0,0.0016]
[1750089004506,1.26271599,107780.0,107770.0,0.0016]
[1750089004734,1.26530599,107780.0,107770.0,0.0006]
[1750089005221,1.38372796,107780.0,107770.0,0.0006]
[1750089005454,0.20415677,107760.0,107750.0,3.85368691]
[1750089005707,1.49611425,107760.0,107750.0,3.85368691]
[1750089005981,1.53292785,107760.0,107750.0,3.85368691]
[1750089006261,1.62907707,107760.0,107750.0,3.85368691]
[1750089006527,1.60680432,107760.0,107750.0,3.85368691]
[1750089006785,1.62904292,107760.0,107750.0,3.85368691]
[1750089007041,1.60780432,107760.0,107750.0,3.85368691]
[1750089009473,0.1400807,107760.0,107750.0,4.05786297]
[1750089009713,0.88271191,107760.0,107750.0,3.85841691]
[1750089009949,1.51185562,107760.0,107750.0,3.85368691]
[1750089011007,1.87405661,107760.0,107750.0,3.85368691]
[1750089011718,1.92405661,107760.0,107750.0,3.85368691]
[1750089011943,2.02020583,107760.0,107750.0,3.85368691]
[1750089012371,7.65151869,107760.0,107750.0,3.85368691]
[1750089012585,7.07020583,107760.0,107750.0,3.85368691]
[1750089013528,6.90185562,107760.0,107750.0,3.85368691]
[1750089013749,1.87402967,107760.0,107750.0,3.85368691]
[1750089013967,1.85185562,107760.0,107750.0,3.85368691]
[1750089014608,7.55533948,107760.0,107750.0,3.85368691]
[1750089015041,7.55533948,107760.0,107750.0,3.3193523]
[1750089015255,7.71015829,107760.0,107750.0,3.3193523]
[1750089015459,7.71015833,107760.0,107750.0,3.3193523]
[1750089015672,7.70915833,107760.0,107750.0,3.3193523]
[1750089016103,7.7014887,107760.0,107750.0,3.3193523]
[1750089017149,7.12017584,107760.0,107750.0,3.3193523]
[1750089017373,7.7014887,107760.0,107750.0,3.3193523]
[1750089017810,7.12017584,107760.0,107750.0,3.3193523]
[1750089018791,7.02143662,107760.0,107750.0,3.3193523]
[1750089018992,6.95185562,107760.0,107750.0,3.3193523]
[1750089019730,6.89926562,107760.0,107750.0,3.3193523]
[1750089021880,0.88271191,107760.0,107750.0,3.3193523]